fUST/lending_fUST_20240909
["ID","MTS","AMOUNT","RATE_DAILY","PERIOD"]
[337584768,1725862239928,-1000.0,0.00043,120]
[337584770,1725862239941,-200.37,0.00043003,3]
[337584772,1725862239955,-101213.60686,0.00043013,2]
[337584775,1725862239968,-208.2062936,0.00043014,2]
[337584777,1725862239980,-416.4125872,0.00043014,2]
[337584778,1725862239992,-40441.35253788,0.0004334,4]
[337584780,1725862240004,-2496.48342286,0.00043466,28]
[337584782,1725862240015,-492.58954312,0.00043574,31]
[337584785,1725862240028,-223588.857254,0.00043575,5]
[337584786,1725862240040,-38945.8776861,0.00043575,5]
[337584787,1725862240052,-103092.54618138,0.00043586,5]
[337584804,1725862243011,-8701.88244562,0.00043586,5]
[337584806,1725862243024,-19472.938843,0.00043586,5]
[337584807,1725862243036,-151.0,0.00043605,120]
[337584808,1725862243048,-151.0,0.00043605,120]
[337584809,1725862243060,-188.470027,0.00043605,120]
[337584810,1725862243072,-188.470027,0.00043605,120]
[337584811,1725862243083,-151.0,0.00043605,120]
[337584812,1725862243095,-151.0,0.00043605,120]
[337584813,1725862243107,-151.0,0.00043605,120]
[337584814,1725862243119,-151.0,0.00043605,120]
[337584815,1725862243130,-151.0,0.00043605,3]
[337584816,1725862243141,-154.324458,0.00043605,120]
[337584817,1725862243151,-154.324458,0.00043605,120]
[337584818,1725862243161,-151.975802,0.00043605,120]
[337584819,1725862243171,-151.0,0.00043605,120]
[337584820,1725862243181,-267.310355,0.00043605,120]
[337584821,1725862243190,-267.310355,0.00043605,120]
[337584822,1725862243200,-151.0,0.00043605,120]
[337584824,1725862243209,-193.053065,0.00043605,120]
[337584826,1725862243219,-193.053065,0.00043605,120]
[337584828,1725862243228,-151.0,0.00043605,120]
[337584830,1725862243237,-151.0,0.00043615,120]
[337584832,1725862243246,-151.0,0.00043615,120]
[337584834,1725862243257,-151.0,0.00043615,120]
[337584836,1725862243267,-151.0,0.00043615,120]
[337584842,1725862243571,-151.0,0.00043615,120]
[337584843,1725862243587,-188.470027,0.00043615,120]
[337584844,1725862243597,-188.470027,0.00043615,120]
[337584845,1725862243606,-151.0,0.00043615,120]
[337584846,1725862243615,-151.0,0.00043615,120]
[337584847,1725862243626,-151.0,0.00043615,120]
[337584848,1725862243637,-151.0,0.00043615,120]
[337584849,1725862243647,-285.289534,0.00043615,3]
[337584850,1725862243657,-154.324458,0.00043615,120]
[337584851,1725862243666,-154.324458,0.00043615,120]
[337584852,1725862243675,-151.0,0.00043615,120]
[337584853,1725862243694,-267.310355,0.00043615,120]
[337584854,1725862243704,-267.310355,0.00043615,120]
[337584855,1725862243713,-151.0,0.00043615,120]
[337584856,1725862243722,-55819.52253217,0.00043625,120]
[337584885,1725862246156,-26047.42032165,0.00043625,120]
[337584886,1725862246200,-7021.05714618,0.00043625,120]
[337584887,1725862246211,-150.112233,0.000437,6]
[337584888,1725862246229,-150.112233,0.000437,5]
[337584889,1725862246246,-19472.938843,0.00043703,5]
[337584890,1725862246265,-5000.0,0.00043713,120]
[337584891,1725862246284,-151.0,0.00043713,120]
[337584892,1725862246304,-151.0,0.00043713,120]
[337584893,1725862246324,-154.324458,0.00043713,120]
[337584894,1725862246345,-154.324458,0.00043713,120]
[337584895,1725862246366,-151.0,0.00043713,120]
[337584896,1725862246375,-267.310355,0.00043713,120]
[337584897,1725862246386,-267.310355,0.00043713,120]
[337584898,1725862246396,-151.0,0.00043713,120]
[337584899,1725862246405,-193.053065,0.00043713,120]
[337584900,1725862246415,-193.053065,0.00043713,120]
[337584901,1725862246424,-151.0,0.00043713,120]
[337584902,1725862246436,-151.0,0.00043715,120]
[337584903,1725862246447,-151.0,0.00043715,120]
[337584904,1725862246457,-192.158825,0.00043725,120]
[337584905,1725862246468,-192.158825,0.00043725,120]
[337584906,1725862246478,-151.0,0.00043725,120]
[337584907,1725862246487,-427.39423,0.00043725,120]
[337584908,1725862246497,-427.39423,0.00043725,120]
[337584909,1725862246506,-153.120759,0.00043725,120]
[337584910,1725862246516,-151.0,0.00043725,120]
[337584911,1725862246526,-151.0,0.00043725,120]
[337584912,1725862246535,-151.0,0.00043725,120]
[337584913,1725862246545,-151.0,0.00043725,120]
[337584914,1725862246558,-151.0,0.00043725,120]
[337584915,1725862246568,-208.11534,0.00043726,2]
[337584916,1725862246577,-151.0,0.00043735,120]
[337584917,1725862246587,-151.0,0.00043735,120]
[337584918,1725862246597,-223.75917,0.00043735,120]
[337584919,1725862246610,-188.470027,0.00043735,120]
[337584920,1725862246619,-188.470027,0.00043735,120]
[337584921,1725862246630,-152.877999,0.00043735,120]
[337584922,1725862246640,-151.0,0.00043735,120]
[337584923,1725862246649,-151.0,0.00043735,120]
[337584924,1725862246659,-151.0,0.00043735,120]
[337584925,1725862246669,-151.0,0.00043735,120]
[337584926,1725862246678,-575.35588701,0.00043735,2]
[337584927,1725862246688,-152.94548734,0.00043735,7]
[337584928,1725862246698,-152.94548734,0.00043735,7]
[337584929,1725862246707,-152.94548734,0.00043735,7]
[337584930,1725862246717,-152.94548734,0.00043735,7]
[337584931,1725862246727,-152.94548734,0.00043735,7]
[337584932,1725862246736,-152.94548734,0.00043735,7]
[337584933,1725862246747,-152.94548734,0.00043735,7]
[337584934,1725862246757,-152.94548734,0.00043735,7]
[337584935,1725862246767,-152.94548734,0.00043735,7]
[337584936,1725862246777,-153.44,0.00043735,7]
[337584937,1725862246786,-305.96597467,0.00043735,7]
[337584938,1725862246796,-305.96597467,0.00043735,7]
[337584939,1725862246806,-305.96597467,0.00043735,7]
[337584940,1725862246817,-305.96597467,0.00043735,7]
[337584941,1725862246829,-305.96597467,0.00043735,7]
[337584942,1725862246841,-305.96597467,0.00043735,7]
[337584943,1725862246856,-305.96597467,0.00043735,7]
[337584944,1725862246867,-305.96597467,0.00043735,7]
[337584945,1725862246877,-305.96597467,0.00043735,7]
[337584946,1725862246887,-305.96597467,0.00043735,7]
[337584947,1725862246897,-305.96597467,0.00043735,7]
[337584948,1725862246907,-305.96597467,0.00043735,7]
[337584949,1725862246918,-305.96597467,0.00043735,7]
[337584950,1725862246931,-305.96597467,0.00043735,7]
[337584951,1725862246948,-305.96597467,0.00043735,7]
[337584952,1725862246958,-305.96597467,0.00043735,7]
[337584953,1725862246968,-305.96597467,0.00043735,7]
[337584954,1725862246977,-305.96597467,0.00043735,7]
[337584955,1725862246987,-305.96597467,0.00043735,7]
[337584956,1725862246997,-306.46,0.00043735,7]
[337584957,1725862247006,-161.64591953,0.00043735,7]
[337584958,1725862247015,-161.64591953,0.00043735,7]
[337584959,1725862247025,-161.64591953,0.00043735,7]
[337584960,1725862247034,-161.64591953,0.00043735,7]
[337584961,1725862247043,-161.64591953,0.00043735,7]
[337584962,1725862247053,-161.64591953,0.00043735,7]
[337584963,1725862247064,-161.64591953,0.00043735,7]
[337584964,1725862247073,-162.14,0.00043735,7]
[337584965,1725862247082,-258.70847125,0.00043735,7]
[337584966,1725862247092,-258.70847125,0.00043735,7]
[337584967,1725862247102,-258.70847125,0.00043735,7]
[337584968,1725862247111,-258.70847125,0.00043735,7]
[337584969,1725862247120,-258.70847125,0.00043735,7]
[337584970,1725862247130,-258.70847125,0.00043735,7]
[337584971,1725862247139,-258.70847125,0.00043735,7]
[337584972,1725862247148,-258.70847125,0.00043735,7]
[337584973,1725862247157,-258.70847125,0.00043735,7]
[337584974,1725862247168,-258.70847125,0.00043735,7]
[337584975,1725862247178,-258.70847125,0.00043735,7]
[337584976,1725862247188,-258.70847125,0.00043735,7]
[337584977,1725862247197,-258.70847125,0.00043735,7]
[337584978,1725862247207,-258.70847125,0.00043735,7]
[337584979,1725862247217,-258.70847125,0.00043735,7]
[337584980,1725862247226,-258.70847125,0.00043735,7]
[337584981,1725862247236,-258.70847125,0.00043735,7]
[337584982,1725862247246,-258.70847125,0.00043735,7]
[337584983,1725862247255,-258.70847125,0.00043735,7]
[337584984,1725862247265,-259.2,0.00043735,7]
[337584985,1725862247275,-150.112233,0.000438,8]
[337584986,1725862247288,-150.112233,0.000438,9]
[337584987,1725862247300,-150.112233,0.000438,10]
[337584988,1725862247310,-150.112233,0.000438,9]
[337584989,1725862247320,-150.112238,0.000438,6]
[337584990,1725862247330,-1901.08051345,0.00043825,61]
[337584991,1725862247341,-1159.41845027,0.00043825,61]
[337584992,1725862247353,-192.158825,0.00043825,120]
[337584993,1725862247363,-192.158825,0.00043825,120]
[337584994,1725862247373,-154.069512,0.00043825,120]
[337584995,1725862247382,-427.39423,0.00043825,120]
[337584996,1725862247392,-427.39423,0.00043825,120]
[337584997,1725862247402,-151.0,0.00043825,120]
[337584998,1725862247411,-151.0,0.00043825,120]
[337584999,1725862247420,-151.0,0.00043825,120]
[337585000,1725862247430,-239.75317,0.00043825,120]
[337585001,1725862247439,-154.833222,0.00043825,120]
[337585002,1725862247451,-55591.57944128,0.00043825,5]
[337585011,1725863130219,-151.8,0.00040855,30]
[337585012,1725863130241,-160.0,0.00040978,3]
[337585013,1725863130265,-160.0,0.00042098,4]
[337585014,1725863130287,-337.7365135,0.00043014,2]
[337585015,1725863130309,-160.0,0.00043217,5]
[337585016,1725863130330,-467.47347235,0.00043356,2]
[337585017,1725863130352,-467.47347232,0.00043358,2]
[337585018,1725863130374,-467.47347232,0.00043361,2]
[337585019,1725863130395,-467.47347232,0.00043363,2]
[337585020,1725863130416,-467.47347232,0.00043365,2]
[337585021,1725863130437,-37643.90058558,0.00043376,120]
[337585049,1725863355083,-641.82724953,0.00038,10]
[337585050,1725863355104,-3170.97573144,0.0004,30]
[337585074,1725863432099,-200.0,0.00040855,30]
[337585075,1725863432110,-229.94180979,0.00040855,10]
[337585076,1725863432120,-139.64123308,0.00040855,10]
[337585104,1725863440047,-905.38691572,0.00040855,10]
[337585106,1725863440057,-200.0,0.00040855,10]
[337585108,1725863440067,-175.13341855,0.00040855,2]
[337585110,1725863440076,-199.85262892,0.0004089,30]
[337585111,1725863440086,-346.27980714,0.00043276,28]
[337585112,1725863440158,-1838.14318788,0.00043276,28]
[337585113,1725863440167,-150.0,0.00043297,2]
[337585114,1725863440177,-8841.94595757,0.00043376,120]
[337585128,1725863443273,-4550.08938452,0.00043376,120]
[337585129,1725863443293,-37852.06407233,0.00043376,120]
[337585130,1725863443302,-618.89044783,0.00043376,2]
[337585131,1725863443311,-166.97,0.00043445,3]
[337585132,1725863443320,-834.9,0.00043445,3]
[337585133,1725863443329,-344.81268018,0.00043454,31]
[337585134,1725863443338,-66782.59368025,0.00043455,2]
[337585176,1725864436129,-818.03456493,0.000315,9]
[337585180,1725864545150,-1181.96543507,0.000315,9]
[337585320,1725864643347,-302.56278952,0.00041096,2]
[337585322,1725864643358,-400.0,0.00043,31]
[337585324,1725864643368,-72731.17,0.00043,30]
[337585326,1725864643378,-1000.0,0.00043,120]
[337585328,1725864643388,-150.112233,0.000433,10]
[337585330,1725864643398,-4419.16748582,0.00043345,2]
[337585332,1725864643407,-38650.17221,0.00043355,2]
[337585334,1725864643417,-1549.28205181,0.00043356,120]
[337585336,1725864643426,-2508.61,0.00043375,30]
[337585338,1725864643436,-150.112233,0.000434,5]
[337585340,1725864643445,-150.112233,0.000434,7]
[337585342,1725864643455,-241.36887613,0.00043455,31]
[337585344,1725864643465,-579.70922514,0.00043455,61]
[337585346,1725864643475,-5000.0,0.00043455,120]
[337585348,1725864643485,-95025.2643329,0.00043456,5]
[337585350,1725864643495,-13365.02107056,0.00043456,5]
[337585541,1725864646389,-90.89272944,0.00043456,5]
[337585544,1725864677546,150.0,0.0004,120]
[337585546,1725865071262,55223.62,0.00040856,30]
[337585547,1725865071308,500.0,0.00040856,30]
[337585548,1725865071520,55223.62,0.00040856,30]
[337585549,1725865071579,500.0,0.00040856,30]
[337585550,1725865071775,55223.62,0.00040856,30]
[337585551,1725865071847,500.0,0.00040856,30]
[337585552,1725865071981,651.34,0.00040856,30]
[337585553,1725865072061,55223.62,0.00040856,30]
[337585554,1725865072113,500.0,0.00040856,30]
[337585555,1725865072244,651.34,0.00040856,30]
[337585556,1725865072332,55223.62,0.00040856,30]
[337585557,1725865072409,500.0,0.00040856,30]
[337585558,1725865072510,651.34,0.00040856,30]
[337585559,1725865072599,55223.62,0.00040856,30]
[337585560,1725865072878,500.0,0.00040856,30]
[337585561,1725865072912,651.34,0.00040856,30]
[337585562,1725865072947,55223.62,0.00040856,30]
[337585563,1725865073013,500.0,0.00040856,30]
[337585564,1725865073109,651.34,0.00040856,30]
[337585565,1725865073348,500.0,0.00040856,30]
[337585566,1725865073393,651.34,0.00040856,30]
[337585567,1725865073615,55223.62,0.00040856,30]
[337585568,1725865073667,500.0,0.00040856,30]
[337585569,1725865073696,500.0,0.00040856,30]
[337585570,1725865073725,651.34,0.00040856,30]
[337585571,1725865073944,500.0,0.00040856,30]
[337585572,1725865073974,500.0,0.00040856,30]
[337585573,1725865074004,55223.62,0.00040856,30]
[337585574,1725865074033,651.34,0.00040856,30]
[337585575,1725865074243,502.23176216,0.00040856,30]
[337585576,1725865074275,651.34,0.00040856,30]
[337585577,1725865074307,500.0,0.00040856,30]
[337585578,1725865074871,500.0,0.00040856,30]
[337585579,1725865075030,651.34,0.00040856,30]
[337585580,1725865075124,500.0,0.00040856,30]
[337585581,1725865075387,500.0,0.00040856,30]
[337585582,1725865075416,512.54770544,0.00040856,30]
[337585583,1725865075654,500.0,0.00040856,30]
[337585584,1725865075690,651.34,0.00040856,30]
[337585585,1725865076231,376.23317333,0.00040856,30]
[337585586,1725865076263,651.34,0.00040856,30]
[337585587,1725865076618,501.03284259,0.00040856,30]
[337585588,1725865076704,651.34,0.00040856,30]
[337585589,1725865077198,651.34,0.00040856,30]
[337585590,1725865077480,651.34,0.00040856,30]
[337585591,1725865077790,500.0,0.00040856,30]
[337585592,1725865077819,651.34,0.00040856,30]
[337585593,1725865078095,500.89674058,0.00040856,30]
[337585594,1725865078156,651.34,0.00040856,30]
[337585595,1725865078388,651.34,0.00040856,30]
[337585596,1725865078638,908.69,0.00040856,30]
[337585597,1725865078672,651.34,0.00040856,30]
[337585598,1725865078954,651.34,0.00040856,30]
[337585599,1725865079237,651.34,0.00040856,30]
[337585600,1725865079321,908.69,0.00040856,30]
[337585601,1725865079507,651.34,0.00040856,30]
[337585602,1725865079580,908.69,0.00040856,30]
[337585603,1725865079821,651.34,0.00040856,30]
[337585604,1725865079851,908.69,0.00040856,30]
[337585605,1725865080155,651.44090223,0.00040856,30]
[337585606,1725865080186,908.69,0.00040856,30]
[337585607,1725865080456,908.69,0.00040856,30]
[337585608,1725865080749,908.69,0.00040856,30]
[337585609,1725865081044,908.69,0.00040856,30]
[337585610,1725865081337,908.69,0.00040856,30]
[337585611,1725865081698,908.69,0.00040856,30]
[337585612,1725865081949,500.0,0.00040856,30]
[337585613,1725865082005,908.69,0.00040856,30]
[337585614,1725865082081,500.0,0.00040856,30]
[337585615,1725865082290,503.50816656,0.00040856,30]
[337585616,1725865082319,908.69,0.00040856,30]
[337585617,1725865082352,500.0,0.00040856,30]
[337585618,1725865082576,908.69,0.00040856,30]
[337585619,1725865082606,500.0,0.00040856,30]
[337585620,1725865082641,500.0,0.00040856,30]
[337585621,1725865082745,816.58,0.00040856,30]
[337585622,1725865083081,908.69,0.00040856,30]
[337585623,1725865083114,500.0,0.00040856,30]
[337585624,1725865083145,816.58,0.00040856,30]
[337585625,1725865083274,501.47728266,0.00040856,30]
[337585626,1725865083308,908.69,0.00040856,30]
[337585627,1725865083338,543.46204759,0.00040856,30]
[337585628,1725865083425,908.69,0.00040856,30]
[337585629,1725865083590,816.58,0.00040856,30]
[337585630,1725865083641,1346.76,0.00040856,30]
[337585631,1725865083724,908.69,0.00040856,30]
[337585632,1725865083872,816.58,0.00040856,30]
[337585633,1725865084037,908.69,0.00040856,30]
[337585634,1725865084169,816.58,0.00040856,30]
[337585635,1725865084265,1346.76,0.00040856,30]
[337585636,1725865084450,816.58,0.00040856,30]
[337585637,1725865084481,908.69,0.00040856,30]
[337585638,1725865084586,1346.76,0.00040856,30]
[337585639,1725865084724,816.58,0.00040858,30]
[337585640,1725865084753,908.69,0.00040858,30]
[337585641,1725865084859,1346.76,0.00040858,30]
[337585642,1725865085003,816.58,0.00040858,30]
[337585643,1725865085034,908.69,0.00040858,30]
[337585644,1725865085157,1346.76,0.00040858,30]
[337585645,1725865085298,816.58,0.00040858,30]
[337585646,1725865085422,908.69,0.00040858,30]
[337585647,1725865085476,1346.76,0.00040858,30]
[337585648,1725865085520,500.0,0.00040858,30]
[337585649,1725865085586,816.58,0.00040858,30]
[337585650,1725865085679,908.69,0.00040858,30]
[337585651,1725865085746,1346.76,0.00040858,30]
[337585652,1725865085779,501.73797643,0.00040858,30]
[337585653,1725865085846,816.58,0.00040858,30]
[337585654,1725865085946,500.0,0.00040858,30]
[337585655,1725865085977,908.73583863,0.00040858,30]
[337585656,1725865086010,1346.76,0.00040858,30]
[337585657,1725865086122,816.58,0.00040858,30]
[337585658,1725865086212,500.0,0.00040858,30]
[337585659,1725865086533,1346.76,0.00040858,30]
[337585660,1725865086561,816.58,0.00040858,30]
[337585661,1725865086596,1346.76,0.00040858,30]
[337585662,1725865086860,500.0,0.00040858,30]
[337585663,1725865086896,816.58,0.00040858,30]
[337585664,1725865086928,1346.76,0.00040858,30]
[337585665,1725865087133,500.0,0.00040858,30]
[337585666,1725865087165,816.58,0.00040858,30]
[337585667,1725865087202,1346.76,0.00040858,30]
[337585668,1725865087383,500.0,0.00040858,30]
[337585669,1725865087482,1346.76,0.00040858,30]
[337585670,1725865087512,816.58,0.00040858,30]
[337585671,1725865087658,500.0,0.00040858,30]
[337585672,1725865087773,816.58,0.00040858,30]
[337585673,1725865087803,1346.76,0.00040858,30]
[337585674,1725865087836,500.0,0.00040858,30]
[337585675,1725865087994,500.0,0.00040858,30]
[337585676,1725865088037,816.58,0.00040858,30]
[337585677,1725865088153,500.0,0.00040858,30]
[337585678,1725865088255,500.0,0.00040858,30]
[337585679,1725865088304,816.58,0.00040858,30]
[337585680,1725865088389,55223.62,0.00040858,30]
[337585681,1725865088418,500.0,0.00040858,30]
[337585682,1725865088513,534.27996391,0.00040858,30]
[337585683,1725865088580,816.58,0.00040858,30]
[337585684,1725865088657,500.0,0.00040858,30]
[337585685,1725865088686,55223.62,0.00040858,30]
[337585686,1725865088857,816.58,0.00040858,30]
[337585687,1725865088972,55223.62,0.00040858,30]
[337585688,1725865089046,500.0,0.00040858,30]
[337585689,1725865089352,816.58,0.00040858,30]
[337585690,1725865089383,500.0,0.00040858,30]
[337585691,1725865089414,55223.62,0.00040858,30]
[337585692,1725865089451,816.58,0.00040858,30]
[337585693,1725865089522,314.34759548,0.00040858,30]
[337585695,1725865315784,998.0,0.00025204,15]
[337585700,1725865745151,-165.129754,0.00036412,2]
[337585701,1725865745173,-3157.94447762,0.00037,2]
[337585702,1725865755154,-1842.05552238,0.00037,2]
[337585703,1725865760102,-266.0,0.0004,120]
[337585724,1725865832575,-500.0,0.00040758,2]
[337585725,1725865832585,-320.0,0.00040758,2]
[337585726,1725865832595,-242.54110109,0.00040758,2]
[337585727,1725865832609,-15998.95291355,0.00040758,60]
[337587980,1725866749150,-600.25337311,0.00035,2]
[337587981,1725866749171,-400.0,0.00036177,2]
[337587982,1725866749192,-250.0,0.00036178,2]
[337587983,1725866749216,-118.02347537,0.00036178,2]
[337587987,1725866790104,-364.96012952,0.00036178,2]
[337587990,1725866946125,-3107.55621681,0.00036178,2]
[337587991,1725866953116,-1725.5228779,0.00036178,2]
[337587992,1725866953143,-235.0,0.00036347,2]
[337587993,1725866953167,-226.1766669,0.00036348,2]
[337587994,1725866953189,-165.134105,0.00036607,2]
[337587995,1725866953216,-671.5034,0.00037218,30]
[337587996,1725866953240,-165.134105,0.00037243,2]
[337587997,1725866953263,-165.134105,0.00037879,2]
[337587998,1725866953285,-165.134105,0.00038515,2]
[337587999,1725866966087,-1917.53088744,0.0004,2]
[337588000,1725866966110,-159.70931114,0.0004,30]
[337588009,1725867032651,-151.0,0.000405,2]
[337588010,1725867032662,-1911.37012066,0.00040617,28]
[337588011,1725867032672,-194.19516747,0.00040627,2]
[337588012,1725867032682,-500.0,0.00040647,30]
[337588013,1725867032692,-500.0,0.00040647,30]
[337588014,1725867032706,-500.0,0.00040647,30]
[337588015,1725867032718,-502.52186151,0.00040647,30]
[337588016,1725867032730,-658.8087969,0.00040648,2]
[337588017,1725867032927,-186.64655179,0.00040648,2]
[337588018,1725867032943,-7.54861568,0.00040648,2]
[337588019,1725867032954,-478.82024684,0.00040648,60]
[337588031,1725867038747,-500.0,0.00040647,30]
[337588032,1725867038760,-158.48552172,0.00040647,30]
[337588075,1725867064013,1000.0,0.0004,120]
[337588085,1725867932151,-782.8680838,0.00034551,2]
[337588086,1725867932172,-400.0,0.0003737,2]
[337588087,1725867932194,-223.0,0.00037371,2]
[337588088,1725867932216,-1381.65009362,0.00037371,2]
[337588089,1725867956115,-1860.93550496,0.00037371,2]
[337588090,1725867991110,-438.49096174,0.00037371,2]
[337588092,1725868054102,-1503.96311235,0.00037371,2]
[337588101,1725868145117,-19586.21396515,0.00037371,2]
[337588103,1725868149096,-128.74636218,0.00037371,2]
[337588161,1725868231805,-1069.85708335,0.000399,2]
[337588162,1725868231818,-638.47376119,0.000399,2]
[337588163,1725868231831,-300.18914923,0.000399,2]
[337588164,1725868231840,-88.23130592,0.0004,40]
[337588165,1725868231889,-9911.76869408,0.0004,40]
[337588166,1725868231898,-1601.70532,0.0004,120]
[337588167,1725868231907,-155.0,0.0004,120]
[337588168,1725868231916,-505.63595073,0.00040242,2]
[337588169,1725868231927,-229.41302412,0.00040242,2]
[337588170,1725868231937,-2981.50697588,0.00040419,2]
[337588171,1725868231948,-1746.97582636,0.00040419,2]
[337588172,1725868231957,-472.36521646,0.00040439,2]
[337588173,1725868231969,-993.43249011,0.00040439,2]
[337588184,1725868237768,-3262.68509567,0.00040439,2]
[337588185,1725868237778,-14.52798237,0.00040458,2]
[337588186,1725868237789,-4713.95481987,0.00040458,2]
[337588187,1725868237799,-4728.48280224,0.00040478,2]
[337588188,1725868237809,-4728.48280224,0.00040497,2]
[337588190,1725868237829,-349.98,0.00040497,3]
[337588191,1725868237839,-291.65,0.00040497,3]
[337588192,1725868237848,-500.0,0.00040504,2]
[337588193,1725868237858,-3772.2,0.00040505,30]
[337588194,1725868237868,-8260.6,0.00040505,30]
[337588195,1725868237878,-1436.84,0.00040505,30]
[337588196,1725868237887,-500.0,0.00040505,30]
[337588197,1725868237897,-1729.8,0.00040505,30]
[337588198,1725868237907,-1397.35,0.00040505,30]
[337588200,1725868237916,-1611.98,0.00040505,30]
[337588201,1725868237925,-500.0,0.00040505,30]
[337588202,1725868237935,-502.23532653,0.00040505,30]
[337588203,1725868237946,-5851.68,0.00040505,30]
[337588204,1725868237956,-500.0,0.00040506,30]
[337588205,1725868237966,-500.0,0.00040506,30]
[337588206,1725868237976,-500.0,0.00040506,30]
[337588207,1725868237986,-500.0,0.00040506,30]
[337588208,1725868237995,-500.0,0.00040506,30]
[337588209,1725868238005,-500.0,0.00040506,30]
[337588210,1725868238016,-500.0,0.00040506,30]
[337588211,1725868238026,-503.81189654,0.00040506,30]
[337588212,1725868238036,-500.0,0.00040506,30]
[337588213,1725868238045,-500.0,0.00040506,30]
[337588214,1725868238055,-574.6293726,0.00040506,30]
[337588215,1725868238066,-504.93521587,0.00040506,30]
[337588216,1725868238075,-601.12,0.00040506,30]
[337588217,1725868238084,-500.0,0.00040506,30]
[337588218,1725868238094,-500.0,0.00040506,30]
[337588219,1725868238103,-534.98,0.00040506,30]
[337588220,1725868238112,-500.0,0.00040506,30]
[337588221,1725868238121,-500.0,0.00040506,30]
[337588222,1725868238131,-500.0,0.00040506,30]
[337588223,1725868238142,-500.0,0.00040506,30]
[337588224,1725868238154,-504.01730043,0.00040506,30]
[337588225,1725868238164,-500.0,0.00040506,30]
[337588226,1725868238175,-500.0,0.00040506,30]
[337588227,1725868238185,-322.06,0.00040506,30]
[337588228,1725868238195,-170.4953341,0.00040506,30]
[337588229,1725868238206,-500.0,0.00040506,30]
[337588230,1725868238215,-500.0,0.00040506,30]
[337588231,1725868238224,-500.0,0.00040506,30]
[337588232,1725868238234,-500.0,0.00040506,30]
[337588233,1725868238244,-524.8437621,0.00040506,30]
[337588234,1725868238254,-500.0,0.00040506,30]
[337588235,1725868238270,-500.0,0.00040506,30]
[337588236,1725868238512,-500.0,0.00040506,30]
[337588237,1725868238522,-502.51959959,0.00040506,30]
[337588238,1725868238532,-500.0,0.00040506,7]
[337588239,1725868238541,-547.49,0.00040506,30]
[337588240,1725868238550,-500.0,0.00040506,2]
[337588241,1725868238559,-500.0,0.00040506,30]
[337588242,1725868238568,-500.0,0.00040506,30]
[337588243,1725868238577,-500.0,0.00040506,30]
[337588244,1725868238587,-500.0,0.00040506,30]
[337588245,1725868238596,-500.0,0.00040506,30]
[337588246,1725868238606,-500.0,0.00040506,30]
[337588247,1725868238615,-500.0,0.00040506,30]
[337588248,1725868238625,-500.0,0.00040506,30]
[337588249,1725868238634,-504.99921887,0.00040506,30]
[337588250,1725868238644,-502.43398837,0.00040506,30]
[337588251,1725868238654,-354.54309633,0.00040507,2]
[337588252,1725868238664,-151.0,0.00040507,14]
[337588253,1725868238674,-88888.0,0.00040507,60]
[337588254,1725868238684,-592.92791721,0.00040519,2]
[337588255,1725868238694,-500.812646,0.00040526,7]
[337588256,1725868238703,-500.0,0.00040526,7]